[Event "Championnat d'Europe Rapide"]
[Date "2024.12.07"]
[White "Gaponenko, Inna"]
[Black "Stojanovski, Dejan"]
[WhiteElo "2343"]
[BlackElo "2407"]
[Round "5.35"]
[Result "1/2-1/2"]
[TimeControl "900+10"]

1. e4 {[%clk 00:15:19]} d6 {[%emt 00:00:02] [%clk 00:15:18]} 2. d4 {[%emt
00:00:03] [%clk 00:15:28]} Nf6 {[%clk 00:15:27]} 3. Nc3 {[%emt 00:00:01] [%clk
00:15:37]} e5 {[%emt 00:00:02] [%clk 00:15:35]} 4. dxe5 {[%emt 00:00:01] [%clk
00:15:46]} dxe5 {[%clk 00:15:44]} 5. Qxd8+ {[%emt 00:00:02] [%clk 00:15:53]}
Kxd8 {[%clk 00:15:52]} 6. Bg5 {[%emt 00:00:02] [%clk 00:16:02]} Nbd7 {[%emt
00:01:11] [%clk 00:14:51]} 7. O-O-O {[%emt 00:11:33] [%clk 00:04:39]} c6 {[%emt
00:00:06] [%clk 00:14:55]} 8. Bc4 {[%emt 00:00:01] [%clk 00:04:48]} Ke8 {[%emt
00:00:03] [%clk 00:15:03]} 9. Nf3 {[%emt 00:00:01] [%clk 00:04:57]} Bb4 {[%emt
00:00:24] [%clk 00:14:48]} 10. Bh4 {[%emt 00:00:40] [%clk 00:04:28]} Ba5 {[%emt
00:02:48] [%clk 00:12:10]} 11. Ng5 {[%emt 00:01:39] [%clk 00:02:59]} Rf8 {[%emt
00:00:02] [%clk 00:12:18]} 12. f4 {[%clk 00:03:08]} Bc7 {[%emt 00:03:37] [%clk
00:08:52]} 13. Nf3 {[%emt 00:00:38] [%clk 00:02:40]} Ng4 {[%emt 00:01:12] [%clk
00:07:49]} 14. Rhe1 {[%emt 00:01:15] [%clk 00:01:35]} exf4 {[%emt 00:03:08]
[%clk 00:04:51]} 15. e5 {[%clk 00:01:44]} Ne3 {[%emt 00:00:30] [%clk 00:04:32]}
16. e6 {[%emt 00:00:06] [%clk 00:01:48]} fxe6 {[%emt 00:00:09] [%clk 00:04:33]}
17. Bxe6 {[%emt 00:00:02] [%clk 00:01:56]} Ne5 {[%emt 00:00:41] [%clk 00:04:01]}
18. Bb3 {[%emt 00:01:25] [%clk 00:00:42]} Nxf3 {[%emt 00:00:07] [%clk 00:04:03]}
19. gxf3 {[%emt 00:00:02] [%clk 00:00:50]} Bf5 {[%emt 00:00:11] [%clk 00:04:02]}
20. Bf2 {[%emt 00:00:32] [%clk 00:00:28]} Rf6 {[%emt 00:00:58] [%clk 00:03:14]}
21. Bxe3 {[%emt 00:00:05] [%clk 00:00:33]} fxe3 {[%emt 00:00:01] [%clk
00:03:23]} 22. Rxe3+ {[%emt 00:00:03] [%clk 00:00:40]} Kf8 {[%emt 00:00:01]
[%clk 00:03:32]} 23. Re2 {[%emt 00:00:10] [%clk 00:00:39]} Re8 {[%emt 00:00:07]
[%clk 00:03:36]} 24. Ne4 {[%emt 00:00:08] [%clk 00:00:40]} Rh6 {[%emt 00:00:24]
[%clk 00:03:22]} 25. Rh1 {[%emt 00:00:18] [%clk 00:00:32]} Rh3 {[%emt 00:00:28]
[%clk 00:03:05]} 26. Rf2 {[%emt 00:00:14] [%clk 00:00:27]} h6 {[%emt 00:00:13]
[%clk 00:03:02]} 27. c3 {[%emt 00:00:09] [%clk 00:00:28]} g5 {[%emt 00:00:17]
[%clk 00:02:55]} 28. Bc2 {[%emt 00:00:15] [%clk 00:00:23]} Bf4+ {[%emt 00:00:09]
[%clk 00:02:56]} 29. Kb1 {[%emt 00:00:02] [%clk 00:00:31]} Kg7 {[%emt 00:00:23]
[%clk 00:02:42]} 30. a4 {[%emt 00:00:06] [%clk 00:00:35]} b6 {[%emt 00:00:03]
[%clk 00:02:49]} 31. b3 {[%emt 00:00:17] [%clk 00:00:28]} Re5 {[%emt 00:00:39]
[%clk 00:02:19]} 32. Kb2 {[%emt 00:00:03] [%clk 00:00:36]} Kg6 {[%emt 00:00:10]
[%clk 00:02:19]} 33. b4 {[%emt 00:00:07] [%clk 00:00:39]} h5 {[%emt 00:00:14]
[%clk 00:02:15]} 34. Nd2 {[%emt 00:00:36] [%clk 00:00:13]} Bxc2 {[%emt 00:00:48]
[%clk 00:01:37]} 35. Kxc2 {[%emt 00:00:02] [%clk 00:00:21]} Bxd2 {[%emt
00:00:21] [%clk 00:01:25]} 36. Kxd2 {[%clk 00:00:30]} Rh4 {[%emt 00:00:15] [%clk
00:01:21]} 37. Rg1 {[%emt 00:00:20] [%clk 00:00:20]} Kf6 {[%emt 00:00:07] [%clk
00:01:24]} 38. Re1 {[%emt 00:00:14] [%clk 00:00:16]} a5 {[%emt 00:00:16] [%clk
00:01:18]} 39. Rxe5 {[%emt 00:00:09] [%clk 00:00:16]} Kxe5 {[%emt 00:00:01]
[%clk 00:01:27]} 40. bxa5 {[%emt 00:00:12] [%clk 00:00:14]} bxa5 {[%emt
00:00:03] [%clk 00:01:35]} 41. Re2+ {[%emt 00:00:04] [%clk 00:00:19]} Kf5 {[%emt
00:00:02] [%clk 00:01:42]} 42. Kd3 {[%emt 00:00:04] [%clk 00:00:26]} Rxa4 {[%emt
00:00:03] [%clk 00:01:50]} 43. Re8 {[%emt 00:00:01] [%clk 00:00:34]} Ra2 {[%emt
00:00:25] [%clk 00:01:35]} 44. Rf8+ {[%emt 00:00:02] [%clk 00:00:42]} Ke6 {[%emt
00:00:17] [%clk 00:01:28]} 45. Re8+ {[%emt 00:00:12] [%clk 00:00:40]} Kd6 {[%emt
00:00:36] [%clk 00:01:03]} 46. Rg8 {[%emt 00:00:12] [%clk 00:00:37]} Rxh2 {[%emt
00:00:03] [%clk 00:01:10]} 47. Rxg5 {[%emt 00:00:01] [%clk 00:00:46]} a4 {[%clk
00:01:20]} 48. Ra5 {[%emt 00:00:02] [%clk 00:00:54]} Rf2 {[%emt 00:00:20] [%clk
00:01:10]} 49. Ke3 {[%emt 00:00:07] [%clk 00:00:57]} Rc2 {[%emt 00:00:01] [%clk
00:01:18]} 50. Kd3 {[%emt 00:00:01] [%clk 00:01:06]} Rf2 {[%emt 00:00:05] [%clk
00:01:23]} 51. Ke3 {[%emt 00:00:01] [%clk 00:01:16]} 1/2-1/2

[Site "Europe Echecs"]

[Event "Championnat d'Europe Rapide"]
[Date "2024.12.07"]
[White "Dragnev, Valentin"]
[Black "Todorovic, Goran N"]
[WhiteElo "2563"]
[BlackElo "2256"]
[Round "5.36"]
[Result "0-1"]
[TimeControl "900+10"]

1. e4 {[%emt 00:02:32] [%clk 00:12:48]} Nc6 {[%emt 00:00:02] [%clk 00:15:18]} 2.
Nf3 {[%emt 00:00:10] [%clk 00:12:48]} d6 {[%emt 00:00:02] [%clk 00:15:26]} 3. d4
{[%emt 00:00:12] [%clk 00:12:46]} Nf6 {[%emt 00:00:02] [%clk 00:15:34]} 4. Nc3
{[%emt 00:00:06] [%clk 00:12:51]} g6 {[%emt 00:00:02] [%clk 00:15:41]} 5. d5
{[%emt 00:00:07] [%clk 00:12:55]} Nb8 {[%emt 00:00:01] [%clk 00:15:49]} 6. Be3
{[%emt 00:00:03] [%clk 00:13:02]} c6 {[%emt 00:00:02] [%clk 00:15:56]} 7. h3
{[%emt 00:00:03] [%clk 00:13:09]} Bg7 {[%emt 00:00:08] [%clk 00:15:58]} 8. Qd2
{[%emt 00:00:02] [%clk 00:13:18]} b6 {[%emt 00:00:41] [%clk 00:15:26]} 9. Bh6
{[%emt 00:00:47] [%clk 00:12:40]} O-O {[%emt 00:01:05] [%clk 00:14:31]} 10. g4
{[%emt 00:00:13] [%clk 00:12:37]} b5 {[%emt 00:02:17] [%clk 00:12:24]} 11. a3
{[%emt 00:02:20] [%clk 00:10:27]} a6 {[%emt 00:00:03] [%clk 00:12:31]} 12. Bg2
{[%emt 00:00:31] [%clk 00:10:06]} cxd5 {[%emt 00:00:06] [%clk 00:12:35]} 13.
exd5 {[%emt 00:00:14] [%clk 00:10:02]} Nbd7 {[%emt 00:00:26] [%clk 00:12:19]}
14. Bxg7 {[%emt 00:02:58] [%clk 00:07:15]} Kxg7 {[%emt 00:00:02] [%clk
00:12:27]} 15. Nd4 {[%emt 00:00:23] [%clk 00:07:02]} Ne5 {[%emt 00:00:07] [%clk
00:12:29]} 16. b3 {[%emt 00:01:16] [%clk 00:05:56]} Qc7 {[%emt 00:01:43] [%clk
00:10:55]} 17. f4 {[%emt 00:00:12] [%clk 00:05:55]} Ned7 {[%emt 00:00:02] [%clk
00:11:03]} 18. Nc6 {[%emt 00:00:27] [%clk 00:05:38]} Bb7 {[%emt 00:00:13] [%clk
00:10:58]} 19. O-O-O {[%emt 00:00:15] [%clk 00:05:34]} Nb8 {[%emt 00:03:13]
[%clk 00:07:55]} 20. g5 {[%emt 00:00:22] [%clk 00:05:22]} Nh5 {[%emt 00:00:12]
[%clk 00:07:52]} 21. Qd4+ {[%emt 00:00:48] [%clk 00:04:44]} Kg8 {[%emt 00:01:48]
[%clk 00:06:14]} 22. Rhe1 {[%emt 00:00:04] [%clk 00:04:50]} e6 {[%emt 00:03:15]
[%clk 00:03:09]} 23. Bf3 {[%emt 00:02:44] [%clk 00:02:15]} Nxc6 {[%emt 00:01:12]
[%clk 00:02:06]} 24. dxc6 {[%emt 00:00:27] [%clk 00:01:58]} Bxc6 {[%emt
00:00:02] [%clk 00:02:15]} 25. Bxh5 {[%emt 00:00:03] [%clk 00:02:05]} gxh5
{[%emt 00:00:02] [%clk 00:02:24]} 26. f5 {[%emt 00:00:05] [%clk 00:02:11]} exf5
{[%emt 00:00:16] [%clk 00:02:17]} 27. Rf1 {[%emt 00:00:37] [%clk 00:01:43]} Rac8
{[%emt 00:00:08] [%clk 00:02:20]} 28. Kb2 {[%emt 00:00:46] [%clk 00:01:08]} Be4
{[%emt 00:00:22] [%clk 00:02:07]} 29. Rd2 {[%emt 00:00:28] [%clk 00:00:50]} Qc5
{[%emt 00:00:37] [%clk 00:01:40]} 30. Qf6 {[%emt 00:00:02] [%clk 00:00:58]} d5
{[%emt 00:00:50] [%clk 00:01:00]} 31. Ne2 {[%emt 00:00:33] [%clk 00:00:35]} Rc6
{[%emt 00:00:22] [%clk 00:00:48]} 32. Qe5 {[%emt 00:00:04] [%clk 00:00:41]} Rfc8
{[%emt 00:00:46] [%clk 00:00:12]} 33. Rc1 {[%emt 00:00:24] [%clk 00:00:28]} Qd6
{[%emt 00:00:02] [%clk 00:00:19]} 34. Qd4 {[%emt 00:00:08] [%clk 00:00:30]} Qc7
{[%emt 00:00:03] [%clk 00:00:26]} 35. c3 {[%emt 00:00:10] [%clk 00:00:30]} Re8
{[%emt 00:00:03] [%clk 00:00:33]} 36. Rf1 {[%emt 00:00:07] [%clk 00:00:33]} Rce6
{[%emt 00:00:13] [%clk 00:00:30]} 37. Nf4 {[%emt 00:00:02] [%clk 00:00:41]} Qe5
{[%emt 00:00:11] [%clk 00:00:29]} 38. Nxe6 {[%emt 00:00:10] [%clk 00:00:42]}
Rxe6 {[%emt 00:00:01] [%clk 00:00:37]} 39. Qc5 {[%emt 00:00:19] [%clk 00:00:34]}
Kg7 {[%emt 00:00:03] [%clk 00:00:44]} 40. Rff2 {[%emt 00:00:31] [%clk 00:00:13]}
h4 {[%emt 00:00:01] [%clk 00:00:52]} 41. Rf1 {[%emt 00:00:02] [%clk 00:00:22]}
Re7 {[%emt 00:00:02] [%clk 00:01:01]} 42. Qf2 {[%emt 00:00:05] [%clk 00:00:27]}
Qg3 {[%emt 00:00:08] [%clk 00:01:02]} 43. Qc5 {[%emt 00:00:11] [%clk 00:00:26]}
Qe5 {[%emt 00:00:04] [%clk 00:01:08]} 44. Qf2 {[%emt 00:00:15] [%clk 00:00:22]}
Qg3 {[%emt 00:00:02] [%clk 00:01:16]} 45. Qc5 {[%emt 00:00:02] [%clk 00:00:30]}
Qe5 {[%emt 00:00:01] [%clk 00:01:24]} 46. Qe3 {[%emt 00:00:07] [%clk 00:00:34]}
a5 {[%emt 00:00:04] [%clk 00:01:30]} 47. b4 {[%emt 00:00:14] [%clk 00:00:30]}
axb4 {[%emt 00:00:08] [%clk 00:01:32]} 48. axb4 {[%emt 00:00:01] [%clk
00:00:39]} Rc7 {[%emt 00:00:02] [%clk 00:01:40]} 49. Rd4 {[%emt 00:00:31] [%clk
00:00:18]} Qg3 {[%emt 00:00:17] [%clk 00:01:33]} 50. Re1 {[%emt 00:00:02] [%clk
00:00:27]} Qxe3 {[%emt 00:00:04] [%clk 00:01:38]} 51. Rxe3 {[%emt 00:00:01]
[%clk 00:00:36]} Kg6 {[%clk 00:01:47]} 52. Re1 {[%emt 00:00:21] [%clk 00:00:25]}
Kxg5 {[%emt 00:00:09] [%clk 00:01:48]} 53. Rg1+ {[%emt 00:00:07] [%clk
00:00:27]} Kf6 {[%emt 00:00:02] [%clk 00:01:56]} 54. Rd2 {[%emt 00:00:07] [%clk
00:00:31]} h6 {[%emt 00:00:11] [%clk 00:01:54]} 55. Rf2 {[%emt 00:00:11] [%clk
00:00:31]} Ke5 {[%emt 00:00:02] [%clk 00:02:03]} 56. Rg8 {[%emt 00:00:10] [%clk
00:00:30]} f4 {[%emt 00:00:07] [%clk 00:02:06]} 57. Rg4 {[%emt 00:00:20] [%clk
00:00:21]} f3 {[%emt 00:00:07] [%clk 00:02:08]} 58. Rxh4 {[%emt 00:00:01] [%clk
00:00:30]} f5 {[%emt 00:00:01] [%clk 00:02:17]} 59. Rf1 {[%emt 00:00:09] [%clk
00:00:32]} Rg7 {[%emt 00:00:02] [%clk 00:02:24]} 60. Rxh6 {[%emt 00:00:05] [%clk
00:00:37]} Rg2+ {[%emt 00:00:02] [%clk 00:02:31]} 61. Kb3 {[%emt 00:00:06] [%clk
00:00:42]} Bd3 {[%emt 00:01:01] [%clk 00:01:39]} 62. Re1+ {[%emt 00:00:11] [%clk
00:00:41]} Kf4 {[%emt 00:00:03] [%clk 00:01:44]} 63. Rh4+ {[%emt 00:00:37] [%clk
00:00:17]} Kg3 {[%emt 00:00:02] [%clk 00:01:51]} 0-1

[Site "Europe Echecs"]

[Event "Championnat d'Europe Rapide"]
[Date "2024.12.07"]
[White "Janik, Igor"]
[Black "Aymerich Verdaguer, Eduard"]
[WhiteElo "2515"]
[BlackElo "2163"]
[Round "5.37"]
[Result "1-0"]
[TimeControl "900+10"]

1. e4 {[%emt 00:00:01] [%clk 00:15:18]} c5 {[%emt 00:00:03] [%clk 00:15:18]} 2.
Nf3 {[%emt 00:00:01] [%clk 00:15:27]} e6 {[%emt 00:00:01] [%clk 00:15:27]} 3. g3
{[%emt 00:00:01] [%clk 00:15:36]} Nc6 {[%emt 00:00:17] [%clk 00:15:20]} 4. Bg2
{[%emt 00:00:01] [%clk 00:15:44]} e5 {[%emt 00:00:26] [%clk 00:15:04]} 5. O-O
{[%emt 00:00:03] [%clk 00:15:49]} g6 {[%emt 00:00:20] [%clk 00:14:56]} 6. Nc3
{[%emt 00:00:06] [%clk 00:15:52]} Bg7 {[%emt 00:00:08] [%clk 00:14:59]} 7. d3
{[%emt 00:00:01] [%clk 00:16:00]} h6 {[%emt 00:00:02] [%clk 00:15:07]} 8. Nd2
{[%emt 00:00:07] [%clk 00:16:04]} Nge7 {[%emt 00:01:09] [%clk 00:14:08]} 9. Nc4
{[%emt 00:00:03] [%clk 00:16:10]} d6 {[%emt 00:00:09] [%clk 00:14:10]} 10. f4
{[%emt 00:00:06] [%clk 00:16:12]} Nd4 {[%emt 00:04:28] [%clk 00:09:54]} 11. a4
{[%emt 00:00:43] [%clk 00:15:39]} a6 {[%emt 00:01:20] [%clk 00:08:44]} 12. a5
{[%emt 00:00:07] [%clk 00:15:43]} O-O {[%emt 00:00:06] [%clk 00:08:48]} 13. Na4
{[%emt 00:00:25] [%clk 00:15:27]} Rb8 {[%emt 00:01:03] [%clk 00:07:55]} 14. c3
{[%emt 00:00:10] [%clk 00:15:27]} Ndc6 {[%emt 00:00:05] [%clk 00:08:00]} 15.
Nab6 {[%emt 00:00:03] [%clk 00:15:34]} Be6 {[%emt 00:01:37] [%clk 00:06:34]} 16.
Be3 {[%emt 00:00:01] [%clk 00:15:42]} exf4 {[%emt 00:00:50] [%clk 00:05:54]} 17.
Bxf4 {[%emt 00:00:04] [%clk 00:15:48]} Ne5 {[%emt 00:00:01] [%clk 00:06:03]} 18.
Qd2 {[%emt 00:00:40] [%clk 00:15:17]} Kh7 {[%emt 00:00:10] [%clk 00:06:04]} 19.
Nxe5 {[%emt 00:00:54] [%clk 00:14:33]} dxe5 {[%emt 00:00:07] [%clk 00:06:07]}
20. Be3 {[%clk 00:14:42]} Qd6 {[%emt 00:01:34] [%clk 00:04:43]} 21. Qf2 {[%emt
00:01:25] [%clk 00:13:27]} Qxd3 {[%emt 00:00:31] [%clk 00:04:22]} 22. Bxc5
{[%emt 00:00:02] [%clk 00:13:36]} Rfe8 {[%emt 00:00:16] [%clk 00:04:16]} 23.
Rfd1 {[%emt 00:00:02] [%clk 00:13:44]} Qb5 {[%emt 00:00:25] [%clk 00:04:02]} 24.
b4 {[%emt 00:00:03] [%clk 00:13:51]} Ng8 {[%emt 00:00:48] [%clk 00:03:23]} 25.
Nd5 {[%emt 00:00:52] [%clk 00:13:09]} Bxd5 {[%emt 00:00:41] [%clk 00:02:52]} 26.
exd5 {[%emt 00:00:10] [%clk 00:13:09]} f5 {[%emt 00:00:02] [%clk 00:03:00]} 27.
Rac1 {[%emt 00:00:13] [%clk 00:13:06]} Nf6 {[%emt 00:00:15] [%clk 00:02:55]} 28.
c4 {[%emt 00:00:01] [%clk 00:13:15]} Qd7 {[%clk 00:03:04]} 29. h3 {[%emt
00:00:19] [%clk 00:13:06]} e4 {[%emt 00:00:50] [%clk 00:02:25]} 30. Be3 {[%emt
00:00:14] [%clk 00:13:00]} Rbd8 {[%emt 00:00:27] [%clk 00:02:09]} 31. Bf1 {[%emt
00:00:08] [%clk 00:13:02]} Qa4 {[%emt 00:00:57] [%clk 00:01:23]} 32. Qd2 {[%emt
00:00:29] [%clk 00:12:43]} Nd7 {[%emt 00:00:05] [%clk 00:01:28]} 33. Be2 {[%emt
00:00:17] [%clk 00:12:35]} Ne5 {[%emt 00:00:08] [%clk 00:01:30]} 34. Kg2 {[%clk
00:12:44]} g5 {[%emt 00:00:23] [%clk 00:01:17]} 35. Rf1 {[%emt 00:00:07] [%clk
00:12:47]} Rf8 {[%emt 00:00:03] [%clk 00:01:24]} 36. Bc5 {[%emt 00:00:11] [%clk
00:12:46]} Rf7 {[%emt 00:00:21] [%clk 00:01:14]} 37. Bh5 {[%emt 00:00:04] [%clk
00:12:52]} Ng6 {[%emt 00:00:14] [%clk 00:01:11]} 38. d6 {[%emt 00:00:08] [%clk
00:12:55]} Qc6 {[%emt 00:00:07] [%clk 00:01:14]} 39. Rcd1 {[%emt 00:00:11] [%clk
00:12:53]} e3+ {[%emt 00:00:04] [%clk 00:01:20]} 40. Qd5 {[%emt 00:00:01] [%clk
00:13:02]} f4 {[%emt 00:00:18] [%clk 00:01:13]} 41. Bxg6+ {[%emt 00:00:24] [%clk
00:12:48]} Kxg6 {[%emt 00:00:02] [%clk 00:01:21]} 42. Qxc6 {[%emt 00:00:30]
[%clk 00:12:28]} bxc6 {[%emt 00:00:02] [%clk 00:01:30]} 43. Kf3 {[%emt 00:00:08]
[%clk 00:12:29]} Bc3 {[%emt 00:01:03] [%clk 00:00:36]} 44. gxf4 {[%emt 00:00:10]
[%clk 00:12:29]} gxf4 {[%emt 00:00:02] [%clk 00:00:45]} 45. Rd3 {[%emt 00:00:20]
[%clk 00:12:19]} Bd2 {[%emt 00:00:10] [%clk 00:00:45]} 46. b5 {[%emt 00:01:55]
[%clk 00:10:34]} cxb5 {[%emt 00:00:08] [%clk 00:00:47]} 47. cxb5 {[%clk
00:10:43]} axb5 {[%emt 00:00:01] [%clk 00:00:56]} 48. a6 {[%emt 00:00:01] [%clk
00:10:52]} Kf5 {[%emt 00:00:45] [%clk 00:00:21]} 49. a7 {[%emt 00:00:04] [%clk
00:10:59]} Ke6 {[%emt 00:00:02] [%clk 00:00:29]} 50. Ra1 {[%emt 00:00:19] [%clk
00:10:49]} Ra8 {[%emt 00:00:08] [%clk 00:00:31]} 51. d7 {[%emt 00:00:04] [%clk
00:10:55]} Rxd7 {[%emt 00:00:02] [%clk 00:00:39]} 52. Ra6+ {[%clk 00:11:05]} Ke5
{[%emt 00:00:09] [%clk 00:00:40]} 53. Rxd7 {[%emt 00:00:01] [%clk 00:11:12]} Rg8
{[%emt 00:00:11] [%clk 00:00:39]} 54. a8=Q {[%emt 00:00:06] [%clk 00:11:15]}

[Site "Europe Echecs"]

[Event "Championnat d'Europe Rapide"]
[Date "2024.12.07"]
[White "Muradli, Mahammad"]
[Black "Avramidou, Anastasia"]
[WhiteElo "2588"]
[BlackElo "2298"]
[Round "5.38"]
[Result "1-0"]
[TimeControl "900+10"]

1. d4 {[%emt 00:00:50] [%clk 00:14:29]} Nf6 {[%emt 00:00:06]} 2. c4 {[%clk
00:14:37]} g6 {[%emt 00:00:02] [%clk 00:15:24]} 3. Nc3 {[%emt 00:00:03] [%clk
00:14:45]} Bg7 {[%emt 00:00:02] [%clk 00:15:33]} 4. e4 {[%emt 00:00:02] [%clk
00:14:53]} d6 {[%emt 00:00:01] [%clk 00:15:41]} 5. Be2 {[%emt 00:00:09] [%clk
00:14:55]} O-O {[%emt 00:00:37] [%clk 00:15:14]} 6. Be3 {[%emt 00:00:21] [%clk
00:14:44]} e5 {[%emt 00:00:18] [%clk 00:15:06]} 7. d5 {[%emt 00:00:05] [%clk
00:14:50]} a5 {[%emt 00:00:44] [%clk 00:14:32]} 8. h4 {[%emt 00:00:54] [%clk
00:14:06]} h5 {[%emt 00:01:31] [%clk 00:13:11]} 9. f3 {[%emt 00:00:11] [%clk
00:14:05]} Na6 {[%emt 00:00:03] [%clk 00:13:18]} 10. Nh3 {[%emt 00:01:10] [%clk
00:13:04]} Nc5 {[%emt 00:00:07] [%clk 00:13:21]} 11. Nf2 {[%emt 00:00:04] [%clk
00:13:09]} Bd7 {[%emt 00:05:29] [%clk 00:08:04]} 12. g4 {[%emt 00:00:27] [%clk
00:12:52]} b6 {[%emt 00:00:36] [%clk 00:07:37]} 13. Qd2 {[%emt 00:01:26] [%clk
00:11:36]} Qc8 {[%emt 00:00:17] [%clk 00:07:31]} 14. O-O-O {[%emt 00:00:12]
[%clk 00:11:34]} a4 {[%emt 00:00:15] [%clk 00:07:25]} 15. Kb1 {[%emt 00:00:13]
[%clk 00:11:31]} Qa6 {[%emt 00:02:38] [%clk 00:04:57]} 16. Bg5 {[%emt 00:00:44]
[%clk 00:10:57]} Nb3 {[%emt 00:03:02] [%clk 00:02:05]} 17. Qe3 {[%emt 00:00:46]
[%clk 00:10:22]} Nd4 {[%emt 00:00:02] [%clk 00:02:13]} 18. Bxf6 {[%emt 00:00:24]
[%clk 00:10:07]} Bxf6 {[%emt 00:00:01] [%clk 00:02:22]} 19. gxh5 {[%emt
00:00:02] [%clk 00:10:16]} Kh7 {[%emt 00:00:48] [%clk 00:01:43]} 20. Rdg1 {[%emt
00:00:39] [%clk 00:09:47]} Rg8 {[%emt 00:01:09] [%clk 00:00:45]} 21. Ng4 {[%emt
00:00:33] [%clk 00:09:24]} Bxg4 {[%emt 00:00:20] [%clk 00:00:34]} 22. fxg4
{[%emt 00:00:01] [%clk 00:09:33]} Be7 {[%emt 00:00:30] [%clk 00:00:14]} 23.
hxg6+ {[%emt 00:00:14] [%clk 00:09:29]} fxg6 {[%emt 00:00:01] [%clk 00:00:23]}
24. g5 {[%emt 00:00:01] [%clk 00:09:38]} Kg7 {[%emt 00:00:15] [%clk 00:00:17]}
25. h5 {[%emt 00:00:36] [%clk 00:09:13]} Rh8 {[%emt 00:00:09] [%clk 00:00:18]}
26. Nb5 {[%emt 00:00:17] [%clk 00:09:06]} Nxb5 {[%emt 00:00:13] [%clk 00:00:14]}
27. cxb5 {[%emt 00:00:01] [%clk 00:09:15]} Qa5 {[%emt 00:00:09] [%clk 00:00:15]}
28. h6+ {[%emt 00:00:09] [%clk 00:09:16]} Kh7 {[%emt 00:00:01] [%clk 00:00:23]}
29. a3 {[%emt 00:00:19] [%clk 00:09:07]} Rhf8 {[%emt 00:00:07] [%clk 00:00:27]}
30. Bh5 {[%emt 00:00:14] [%clk 00:09:03]} Qxb5 {[%emt 00:00:20] [%clk 00:00:17]}
31. Bxg6+ {[%emt 00:00:10] [%clk 00:09:02]} Kxg6 {[%emt 00:00:11] [%clk
00:00:16]} 32. Qh3 {[%emt 00:00:10] [%clk 00:09:03]} Qe2 {[%emt 00:00:11] [%clk
00:00:15]} 33. Qe6+ {[%emt 00:00:03] [%clk 00:09:09]} 1-0

[Site "Europe Echecs"]